Cogmind - Beta 14 @@@ ROGUE MODE // 2024.09.04 @ 15:13:59 Player: lsend Result: Destroyed by Y-54 Guardian with Flak Gun Performance ------------- Evolutions (3) 1500 Regions Visited (7) 1400 Robots Destroyed (0) 0 Value Destroyed (0) 0 Prototype IDs (2) 40 Alien Tech Used (0) 0 Bonus (834) 834 TOTAL SCORE: 3774 Bonus ------- Pacifist 834 Cogmind --------- Core Integrity 0/700 Matter 187/300 Energy 67/100 System Corruption 7% Temperature Cool (10) Movement Flying (34) Location -7/Storage Parts ------- > --- POWER (1) -------- (None) > --- PROPULSION (5) --- Xenon Bombardment Thruster Improved Cesium-ion Thruster > --- UTILITY (5) ------ Transmission Jammer Utility Shielding Hardened Medium Armor Plating System Shield > --- WEAPON (2) ------- (None) > --- INVENTORY (5) ---- Aerolev Unit Small Storage Unit Hardened Medium Armor Plating Peak State ------------ > --- POWER ------------ (None) > --- PROPULSION ------- Improved Cesium-ion Thruster Field Propulsion Drive > --- UTILITY ---------- Utility Shielding Improved Medium Armor Plating System Shield > --- WEAPON ----------- (None) > --- INVENTORY -------- Aerolev Unit Small Storage Unit Hardened Medium Armor Plating Hardened Medium Armor Plating [Rating: 20] Favorites ----------- Power None Propulsion Light Treads Treads Light Treads Hover Unit Aerolev Unit Flight Unit Field Propulsion Drive Utility Weight Redist. System Device Weight Redist. System Hackware Hacking Suite Protection Utility Shielding Weapon None Build | -11 -10 -9 -8 -7 -7 -7 -7 ------- Run | Yrd Mat Mat Mat Fac Was Fac Sto Slots Evolved 6 | . . 2 2 2 . . . Power . | . . . . . . . . Propulsion 3 | . . 1 1 1 . . . Utility 3 | . . 1 1 1 . . . Weapon . | . . . . . . . . Parts Attached 20 | 2 . 5 2 3 1 5 2 Power . | . . . . . . . . Engine . | . . . . . . . . Core . | . . . . . . . . Reactor . | . . . . . . . . Propulsion 10 | 2 . 4 . 1 1 2 . Treads 3 | 2 . 1 . . . . . Leg . | . . . . . . . . Wheel . | . . . . . . . . Hover 4 | . . 3 . 1 . . . Flight 3 | . . . . . 1 2 . Utility 10 | . . 1 2 2 . 3 2 Device 2 | . . 1 . . . . 1 Storage . | . . . . . . . . Processor . | . . . . . . . . Hackware 3 | . . . . 2 . 1 . Protection 5 | . . . 2 . . 2 1 Artifact . | . . . . . . . . Weapon . | . . . . . . . . Energy Gun . | . . . . . . . . Energy Cannon . | . . . . . . . . Ballistic Gun . | . . . . . . . . Ballistic Cannon . | . . . . . . . . Launcher . | . . . . . . . . Special Weapon . | . . . . . . . . Impact Weapon . | . . . . . . . . Slashing Weapon . | . . . . . . . . Piercing Weapon . | . . . . . . . . Special Melee Weapon . | . . . . . . . . Unidentified Prototypes 2 | . . 1 . . . 1 . Parts Lost 9 | . . 2 2 3 1 1 . Power . | . . . . . . . . Propulsion 6 | . . 2 1 2 . 1 . Utility 3 | . . . 1 1 1 . . Weapon . | . . . . . . . . Highest Loss Streak 3 | . . 1 1 3 1 1 . To Critical Strikes . | . . . . . . . . Average Slot Usage (%) 30 | . 28 35 32 32 16 20 40 Treads 8 | . 28 23 . . . . . Hover 6 | . . 2 17 10 . . . Flight 2 | . . . . . 1 9 15 Device 5 | . . 9 9 5 . . 5 Hackware 2 | . . . . 8 7 1 7 Protection 4 | . . . 5 7 7 8 11 Peak Build Rating 20 | 2 2 12 12 15 7 20 20 Average Rating 8 | 1 2 5 10 11 4 10 18 On Entrance 6 | . 2 2 12 7 7 7 14 Naked Turns . | . . . . . . . . Heaviest Build 10 | . . . 7 1 1 8 10 Greatest Support 13 | 3 3 3 8 8 7 13 12 Greatest Overweight (x) . | . . . . . . . . Average Overweight (x) . | . . . . . . . . Largest Inventory Capacity 5 | 5 5 5 5 5 5 5 5 Average Capacity 5 | 5 5 5 5 5 5 5 5 Most Carried 4 | 1 1 4 4 3 3 4 4 Average Carried 2 | . 1 2 3 3 3 3 3 Final Capacity 5 | 5 5 5 5 5 5 5 5 Final Carried 4 | 1 1 4 3 3 3 4 3 Class Distribution -------------------- 91% | Mutant 8% | Hacker-Mutant Dominant Class ---------------- Mutant | -10/Materials Mutant | -9/Materials Mutant | -8/Materials Mutant | -7/Factory Hacker-Mutant | -7/Waste Mutant | -7/Factory Mutant | -7/Storage Resources | -11 -10 -9 -8 -7 -7 -7 -7 ----------- Run | Yrd Mat Mat Mat Fac Was Fac Sto Matter Collected 260 | 220 . . 40 . . . . Remotely . | . . . . . . . . Salvage Created . | . . . . . . . . Parts . | . . . . . . . . Haulers Intercepted . | . . . . . . . . Recyclers Shooed . | . . . . . . . . Parts Field Recycled . | . . . . . . . . Retrieved Matter . | . . . . . . . . Parts Self-Destructed . | . . . . . . . . Prevented . | . . . . . . . . Kills | -11 -10 -9 -8 -7 -7 -7 -7 ------- Run | Yrd Mat Mat Mat Fac Was Fac Sto Combat Hostiles Destroyed . | . . . . . . . . Classes Destroyed . | . . . . . . . . Best Kill Streak . | . . . . . . . . Combat Bots Only . | . . . . . . . . Max Kills in Single Turn . | . . . . . . . . Gunslinging . | . . . . . . . . Exploded . | . . . . . . . . Melee . | . . . . . . . . Uniques/NPCs Destroyed . | . . . . . . . . Combat | -11 -10 -9 -8 -7 -7 -7 -7 -------- Run | Yrd Mat Mat Mat Fac Was Fac Sto Hostile Shots Fired 293 | . 2 78 63 63 1 59 27 Missed 140 | . 1 38 28 25 . 33 15 Damage Taken 1803 | . 11 386 467 497 54 294 94 Core 1012 | . 11 88 212 378 54 226 43 Absorbed by Shields . | . . . . . . . . Redirected to Shielding 7 | . . . 3 4 . . . Core Remaining (%) 83 | 100 95 78 61 . . . . Volleys Fired . | . . . . . . . . Largest . | . . . . . . . . Hottest . | . . . . . . . . Shots Fired . | . . . . . . . . Gun . | . . . . . . . . Cannon . | . . . . . . . . Launcher . | . . . . . . . . Special . | . . . . . . . . Kinetic . | . . . . . . . . Thermal . | . . . . . . . . Explosive . | . . . . . . . . Electromagnetic . | . . . . . . . . Robot Hit Streak . | . . . . . . . . Robot Miss Streak . | . . . . . . . . Penetration Max . | . . . . . . . . Secondary Targets . | . . . . . . . . Shots Hit Robots . | . . . . . . . . Core Hits . | . . . . . . . . Critical Kills . | . . . . . . . . Critical Parts Destroyed . | . . . . . . . . Critical Strikes . | . . . . . . . . Melee Attacks . | . . . . . . . . Impact . | . . . . . . . . Slashing . | . . . . . . . . Piercing . | . . . . . . . . Sneak Attacks . | . . . . . . . . Combat Hostiles . | . . . . . . . . Follow-up Attacks . | . . . . . . . . Damage Inflicted 19 | . . 15 4 . . . . Guns . | . . . . . . . . Cannons . | . . . . . . . . Explosions . | . . . . . . . . Melee . | . . . . . . . . Ramming 19 | . . 15 4 . . . . Kinetic . | . . . . . . . . Thermal . | . . . . . . . . Explosive . | . . . . . . . . Electromagnetic . | . . . . . . . . Impact . | . . . . . . . . Slashing . | . . . . . . . . Piercing . | . . . . . . . . Highest Corruption 7 | . . 1 . . 7 7 7 Average Corruption 3 | . . 1 . . 7 7 7 Corruption Purged . | . . . . . . . . Corruption Blocked . | . . . . . . . . Effects 8 | . . 3 . . 2 3 . Message Errors 1 | . . . . . . 1 . Matter Fused 3 | . . 1 . . 1 1 . Heat Flow Errors 2 | . . . . . 1 1 . Energy Discharges 1 | . . 1 . . . . . Data Loss (major) 1 | . . 1 . . . . . Overload Shots . | . . . . . . . . Overflow Damage . | . . . . . . . . Projectiles . | . . . . . . . . Explosions . | . . . . . . . . Melee . | . . . . . . . . Knockbacks . | . . . . . . . . Impact . | . . . . . . . . Kinetic . | . . . . . . . . Secondary . | . . . . . . . . Self-Inflicted Damage 8 | . . 6 2 . . . . Shots . | . . . . . . . . Rammed 4 | . . 3 1 . . . . Targets Rammed 4 | . . 3 1 . . . . Kicked . | . . . . . . . . Crushed . | . . . . . . . . Highest Temperature 261 | . . . . . 218 261 . Average Temperature 123 | . . . . . 116 128 . Received Heat Transfer 345 | . 6 93 126 6 . 78 36 Siege Activations . | . . . . . . . . Robots Corrupted . | . . . . . . . . Combat Hostiles . | . . . . . . . . Parts Fried . | . . . . . . . . Impact Corruptions . | . . . . . . . . Robots Melted . | . . . . . . . . Combat Hostiles . | . . . . . . . . Parts Melted . | . . . . . . . . Heat Transferred . | . . . . . . . . Parts Sabotaged . | . . . . . . . . Parts Stolen . | . . . . . . . . Parts Stripped . | . . . . . . . . Power Chain Reactions . | . . . . . . . . Alert | -11 -10 -9 -8 -7 -7 -7 -7 ------- Run | Yrd Mat Mat Mat Fac Was Fac Sto Peak Influence 453 | . . 453 309 180 57 165 146 Initial 191 | . . . 191 135 57 32 74 Average 133 | . . 125 242 147 51 96 101 Maximum Alert Level 2 | . . 2 1 . . . . Low Security (%) 74 | 100 100 68 12 100 100 100 100 Level 1 23 | . . 26 87 . . . . Level 2 1 | . . 5 . . . . . Level 3 . | . . . . . . . . Level 4 . | . . . . . . . . Level 5 . | . . . . . . . . High Security . | . . . . . . . . Max Security . | . . . . . . . . Squads Dispatched 3 | . . 1 . 1 . 1 . Investigation 2 | . . 1 . . . 1 . Extermination . | . . . . . . . . Reinforcement 1 | . . . . 1 . . . Assault . | . . . . . . . . Garrison . | . . . . . . . . Intercept . | . . . . . . . . Searches Triggered . | . . . . . . . . Construction Impeded . | . . . . . . . . Haulers Reinforced . | . . . . . . . . Active Scanning Responses . | . . . . . . . . Cargo Convoy Interrupts . | . . . . . . . . Stealth | -11 -10 -9 -8 -7 -7 -7 -7 --------- Run | Yrd Mat Mat Mat Fac Was Fac Sto Distress Signals 4 | . . 1 1 . . 2 . Communications Jammed . | . . . . . . . . Distress Signals . | . . . . . . . . Times Spotted 75 | . 2 31 12 6 6 12 6 Peak Tracking Total 16 | . 2 16 8 5 6 6 8 Tactical Retreats 13 | . . 5 4 1 . 2 1 Traps | -11 -10 -9 -8 -7 -7 -7 -7 ------- Run | Yrd Mat Mat Mat Fac Was Fac Sto Traps Triggered 3 | . . 1 1 1 . . . Indirectly . | . . . . . . . . Trap Hack Attempts . | . . . . . . . . Triggered . | . . . . . . . . Disarmed . | . . . . . . . . Reprogrammed . | . . . . . . . . Reused . | . . . . . . . . Traps Extracted . | . . . . . . . . Installed . | . . . . . . . . Triggered . | . . . . . . . . Machines | -11 -10 -9 -8 -7 -7 -7 -7 ---------- Run | Yrd Mat Mat Mat Fac Was Fac Sto Machines Disabled . | . . . . . . . . Max in Single Turn . | . . . . . . . . Machines Repaired . | . . . . . . . . Machines Dismantled . | . . . . . . . . Machines Sabotaged . | . . . . . . . . Overloaded Fab Kills . | . . . . . . . . Hacking | -11 -10 -9 -8 -7 -7 -7 -7 --------- Run | Yrd Mat Mat Mat Fac Was Fac Sto Machines Accessed 16 | . 1 7 1 1 . 4 2 Terminals 13 | . 1 7 1 . . 3 1 Fabricators . | . . . . . . . . Repair Stations 1 | . . . . . . 1 . Recycling Units 2 | . . . . 1 . . 1 Scanalyzers . | . . . . . . . . Garrison Access . | . . . . . . . . Total Hacks 28 | . 2 11 2 1 . 7 5 Successful 6 | . 1 1 1 1 . 1 1 Failed 22 | . 1 10 1 . . 6 4 Catastrophic 8 | . . 5 . . . 2 1 Database Lockouts . | . . . . . . . . Manual 21 | . . 11 2 . . 4 4 Terminals 25 | . 2 11 2 . . 6 4 Fabricators . | . . . . . . . . Repair Stations 1 | . . . . . . 1 . Recycling Units 2 | . . . . 1 . . 1 Scanalyzers . | . . . . . . . . Garrison Access . | . . . . . . . . Terminal Hacks 4 | . 1 1 1 . . 1 . Branch Access Points 3 | . . 1 1 . . 1 . Zone Layout 1 | . 1 . . . . . . Fabricator Hacks . | . . . . . . . . Repair Station Hacks . | . . . . . . . . Recycling Unit Hacks 1 | . . . . 1 . . . Retrieve Components 1 | . . . . 1 . . . Scanalyzer . | . . . . . . . . Garrison Access Hacks . | . . . . . . . . Unauthorized Hacks 1 | . . . . . . . 1 Terminals 1 | . . . . . . . 1 Track 1 | . . . . . . . 1 Fabricators . | . . . . . . . . Repair Stations . | . . . . . . . . Recycling Units . | . . . . . . . . Scanalyzers . | . . . . . . . . Garrison Access . | . . . . . . . . Data Cores Recovered . | . . . . . . . . Used . | . . . . . . . . Hacking Detections 12 | . 1 6 . . . 3 2 Full Trace Events 2 | . . 1 . . . 1 . Feedback Events . | . . . . . . . . Feedback Blocked . | . . . . . . . . Robot Schematics Acquired . | . . . . . . . . Robots Built . | . . . . . . . . Authchips . | . . . . . . . . Time . | . . . . . . . . Total Robot Build Rating . | . . . . . . . . Part Schematics Acquired . | . . . . . . . . Parts Built . | . . . . . . . . Authchips . | . . . . . . . . Time . | . . . . . . . . Total Part Build Rating . | . . . . . . . . Parts Repaired . | . . . . . . . . Time . | . . . . . . . . Parts Recycled . | . . . . . . . . Recycled Matter . | . . . . . . . . Retrieved Matter . | . . . . . . . . Retrieved Components 3 | . . . . 3 . . . Parts Scanalyzed . | . . . . . . . . Part Schematics Acquired . | . . . . . . . . Parts Damaged . | . . . . . . . . Bothacking | -11 -10 -9 -8 -7 -7 -7 -7 ------------ Run | Yrd Mat Mat Mat Fac Was Fac Sto Used RIF Installer . | . . . . . . . . Robots Hacked . | . . . . . . . . Non-combat . | . . . . . . . . Combat . | . . . . . . . . Robot Hacks Applied . | . . . . . . . . Relay Couplers Released . | . . . . . . . . Fabnet Peak Effective % . | . . . . . . . . Robots Rewired . | . . . . . . . . Allies Hacked . | . . . . . . . . Hacks Repelled . | . . . . . . . . Allies | -11 -10 -9 -8 -7 -7 -7 -7 -------- Run | Yrd Mat Mat Mat Fac Was Fac Sto Total Allies . | . . . . . . . . Largest Group . | . . . . . . . . Highest-Rated Group . | . . . . . . . . Highest-Rated Ally . | . . . . . . . . Total Orders . | . . . . . . . . Ally Attacks . | . . . . . . . . Total Damage . | . . . . . . . . Kills . | . . . . . . . . Allies Corrupted . | . . . . . . . . Allies Melted . | . . . . . . . . Intel | -11 -10 -9 -8 -7 -7 -7 -7 ------- Run | Yrd Mat Mat Mat Fac Was Fac Sto Robot Analysis Total . | . . . . . . . . Derelict Logs Recovered . | . . . . . . . . Drone Launches . | . . . . . . . . Drone Recoveries . | . . . . . . . . Exploration | -11 -10 -9 -8 -7 -7 -7 -7 ------------- Run | Yrd Mat Mat Mat Fac Was Fac Sto Turns Passed 894 | 18 34 284 157 180 57 126 38 Spaces Moved 1726 | 28 67 495 292 350 111 279 104 Core 762 | 28 67 495 10 62 100 . . Treads . | . . . . . . . . Legs . | . . . . . . . . Wheels . | . . . . . . . . Hover 570 | . . . 282 288 . . . Flight 394 | . . . . . 11 279 104 Fastest Speed 34 | 50 50 50 50 50 45 34 34 Average Speed 47 | 50 50 50 50 50 49 41 34 Slowest Speed 50 | 50 50 50 50 50 50 45 34 Overloaded Moves . | . . . . . . . . Propulsion Burnouts . | . . . . . . . . Robots Hopped 10 | . . . . . . 7 3 Cave-ins Triggered . | . . . . . . . . Exploration Rate (%) 30 | 3 20 56 32 13 70 12 39 Regions Visited 7 Branch Regions 1 Pre-discovered Areas . | . . . . . . . . Known Exits Taken 1 | . . . . . . 1 . Unknown Exits Taken 4 | 1 1 1 1 . . . . Scrap Searched . | . . . . . . . . Spaces Dug . | . . . . . . . . Terrain Destroyed . | . . . . . . . . Melee . | . . . . . . . . Projectile . | . . . . . . . . AOE . | . . . . . . . . Terrain Rammed . | . . . . . . . . Walls Destroyed . | . . . . . . . . Machines Disabled . | . . . . . . . . Actions | -11 -10 -9 -8 -7 -7 -7 -7 --------- Run | Yrd Mat Mat Mat Fac Was Fac Sto Total 1774 | 30 66 528 302 353 111 281 103 Wait 29 | . . 22 7 . . . . Move 1701 | 27 66 494 291 350 110 265 98 Hop 9 | . . . . . . 6 3 Pick Up 6 | 1 . 3 . . . 2 . Fast Attach 17 | 2 . 5 1 3 1 4 1 Attach 3 | . . . 1 . . 1 1 Detach 1 | . . . . . . 1 . Swap . | . . . . . . . . Drop 4 | . . 1 1 . . 2 . Fire . | . . . . . . . . Melee . | . . . . . . . . Ram 4 | . . 3 1 . . . . Kick . | . . . . . . . . Crush . | . . . . . . . . Escape Stasis . | . . . . . . . . Rewire . | . . . . . . . . Trap . | . . . . . . . . Miscellaneous . | . . . . . . . . Route ------- -11/Scrapyard -10/Materials (discovered 2 exits: *Mat / [Min]) -9/Materials (discovered 5 exits: *Mat x3 / *Min x2) -8/Materials -7/Factory -7/Waste -7/Factory (discovered 3 exits: *Sto / Low x2) -7/Storage History --------- Turn | Location | Event 10 | -11/Scrapyard | Discovered new exit (range 16) 19 | -11/Scrapyard | Entered Materials 34 | -10/Materials | Discovered new exit (range 14) 34 | -10/Materials | Discovered new exit (range 18) 53 | -10/Materials | Entered another Materials area 53 | -9/Materials | Evolved 2 slots: Propulsion x1, Utility x1 102 | -9/Materials | Discovered new exit (range 6) 172 | -9/Materials | Discovered new exit (range 3) 214 | -9/Materials | Discovered new exit (range 16) 237 | -9/Materials | Discovered new exit (range 10) 287 | -9/Materials | Identified exit to Mines 329 | -9/Materials | Build established: Mutant 337 | -9/Materials | Entered another Materials area 337 | -8/Materials | Evolved 2 slots: Propulsion x1, Utility x1 409 | -8/Materials | Discovered new exit (range 4) 494 | -8/Materials | Entered Factory 494 | -7/Factory | Evolved 2 slots: Propulsion x1, Utility x1 671 | -7/Factory | Core integrity fell below 50% 674 | -7/Factory | Lost 3 parts (2n1u) 674 | -7/Factory | Manually triggered Chute Trap 674 | -7/Factory | Sucked down chute 674 | -7/Factory | Entered Waste 677 | -7/Waste | Spotted C-40 Crusher 678 | -7/Waste | Spotted C-40 Crusher 680 | -7/Waste | Spotted C-40 Crusher 689 | -7/Waste | EMP discharged 702 | -7/Waste | Crushed by Compactor (1 part destroyed, 1 dropped) 705 | -7/Waste | Spotted C-40 Crusher 709 | -7/Waste | Spotted C-40 Crusher 717 | -7/Waste | Spotted C-40 Crusher 720 | -7/Waste | Discovered new exit (range 16) 731 | -7/Waste | Entered Factory 821 | -7/Factory | Identified exit to Storage 821 | -7/Factory | Identified exit to Lower Caves 835 | -7/Factory | Core integrity fell below 20% 857 | -7/Factory | Entered Storage 895 | -7/Storage | Destroyed by Y-54 Guardian with Flak Gun Last Messages --------------- 00828_ Acquired System Shield. 00830_ Acquired Hrd. Medium Armor Plating. 00834_ Critical hit (Burn: +37). 00838_ W-25 Informer sends out distress signal. 00848_ Field Propulsion Drive destroyed. 00849_ Dropped Imp. Medium Armor Plating. 00853_ System corrupted: Matter fused (-10). 00855_ Acquired Xenon Bombardment Thruster. LOCATION=STORAGE GOAL=ESCAPE 00862_ Connecting with Terminal... >>Trojan(Track) Trojan loaded successfully. Testing... Tracking enabled and active. 00864_ Acquired Transmission Jammer. 00870_ Connecting with Recycling Unit... 00878_ K-01 Serf collects debris. 00880_ O-24 Administrator: "IFF HANDSHAKE FAILED. SECURING TERMINAL." 00889_ K-01 Serf collects debris. Map ----- +----------------------------------------------------+ | ??????????????????????????????????? | | ??????????????????????????????????? | | ??????????????????????????????????? | | ??????????????????????????????????? | | ??????????????????????????????????? | | ??????????????????????????????????? | | ??????????????????????????????????? | | ??????????????????????????????????? | | ??????????????????????????????????? | | ???????????????????????????? ???? | | ???????????????????????????? #??? | | ???????????????????????????? #??? | | ???????????????????????????? #??? | | ???????????????????????????? #??? | | ???????????????????????????? #??? | | ???????????????????????????? #??? | | ???????????????????????????# #??? | | ???????????????????????????# #??? | | ???????????????????????????# #??? | | ??????????????????########## #??? | | ?????????????????? # #??? | | ?????????????????? """ """ # #??? | | ?????????????????# """ """ # #??? | | ?????????????????# """ """ + #??? | | ?????????????????# Y# #??? | | ?????????????????# @ # #??? | | ?????????????????# # #??? | | ?? ??????????????# # #??? | | ??/??????????????###""T""# # #??? | | ?? ????????????????#"""""?## #??? | | ?? ????????????????######??# #??? | | ?? ???????????????????##???# #??? | | ?? ???????????????##### #### #??? | | ?? ###????????????# # #??? | | ?+ # ######???????# # #??? | | ?# # #???????# """ # #??? | | ?# # """ #???????# """ # #??? | | ?# # """ #???????# """ + #??? | | ?# # """ #+#+##### """ #+#+##?? | | ## # """ + # """ # #? | | # """ # # # #? | | + # + # #? | | # # ########## #? | | ####""" + #????????# #? | | ??#"R ###### #????????# #? | | #""" #????# #????????# #? | | #""" #????# #????????#######? | | # #????# #???????????????? | | "" ########????# +???????????????? | | "" #???????????# #???????????????? | +----------------------------------------------------+ Best States ------------- Heat Dissipation 34 Energy Generation 5 Energy Capacity 100 Matter Stores 300 Matter Capacity 300 Sight Range 16 Terrain Scan Density 10 Armor Coverage 225 Utility Shielding 33 Evasion (%) 63 Offensive Hacking 20 Defensive Hacking 10 Item Schematics ----------------- None Robot Schematics ------------------ None Fabricated ------------ Nothing Alien Tech Used ----------------- None Achievements -------------- None Challenges ------------ None Game ------ Seed HeatLightMinigun Manual? 0 Play Time 00:16:40 Cumulative 687.7 hours Start 2024.09.03 @ 17:19:21 End 2024.09.04 @ 15:13:59 Sessions 3 Manual Loads 0 Difficulty Rogue Special Mode None Game No. 534 Rogue 534 Adventurer 0 Explorer 0 Win Type - Total 179 Types 100/9/51/7/3/2/5/1/1 Lore% 81 Gallery% 87 Achievement% 85 Wizard Run 0 Options --------- Layout 0 ASCII 1 Keyboard 0 Movement Vi Keybinds 0 Fullscreen 1 Font 16/Smallcaps Map View 184x79 Zoom Use 0% Tactical HUD 1 Map Filters NONE Filters NONE Steam 1 RUN: c17f03c9-a70b-4f3d-b5dd-f705547400f5